bitfinex/quotes_BTCUSD_20250617
["timestamp","ask_amount","ask_price","bid_price","bid_amount"]
[1750118756785,0.5377766,106720.0,106710.0,0.00304715]
[1750118757002,0.92256758,106720.0,106710.0,0.00304715]
[1750118757216,0.82641836,106720.0,106710.0,0.00304715]
[1750118757435,0.89151836,106720.0,106710.0,0.00304715]
[1750118758059,0.85931836,106720.0,106710.0,0.00304715]
[1750118758276,0.82641836,106720.0,106710.0,0.00304715]
[1750118758501,0.82541836,106720.0,106710.0,0.00104715]
[1750118758951,0.92156758,106720.0,106710.0,0.00104715]
[1750118759183,1.00553822,106720.0,106710.0,0.00104715]
[1750118759670,1.00553822,106720.0,106710.0,4.715e-05]
[1750118759879,1.00953822,106720.0,106710.0,0.00104715]
[1750118760109,1.01253822,106720.0,106710.0,0.00204715]
[1750118761532,6.15426397,106720.0,106710.0,0.00204715]
[1750118761768,6.21734397,106720.0,106710.0,0.00204715]
[1750118761990,6.15280312,106720.0,106710.0,0.00204715]
[1750118762734,6.2537729,106720.0,106710.0,0.00204715]
[1750118763004,0.54624293,106670.0,106660.0,0.001]
[1750118763366,0.9075381,106670.0,106660.0,0.001]
[1750118763723,0.53688712,106660.0,106650.0,0.001]
[1750118763948,0.66412888,106660.0,106650.0,0.001]
[1750118764191,5.76748482,106660.0,106650.0,0.001]
[1750118764412,6.02330684,106660.0,106650.0,0.001]
[1750118764646,6.14779551,106660.0,106650.0,0.001]
[1750118765378,6.17499264,106660.0,106650.0,0.001]
[1750118765606,6.22499264,106660.0,106650.0,0.001]
[1750118765920,0.83771264,106660.0,106650.0,0.001]
[1750118766151,0.90620629,106660.0,106650.0,0.001]
[1750118766369,0.68336629,106660.0,106650.0,0.001]
[1750118766595,0.87644629,106660.0,106650.0,0.001]
[1750118766815,0.87844629,106660.0,106650.0,0.001]
[1750118767054,1.03709551,106660.0,106650.0,0.001]
[1750118767307,1.05163636,106660.0,106650.0,0.001]
[1750118767516,6.24275349,106660.0,106650.0,0.001]
[1750118767760,6.02301633,106660.0,106650.0,0.001]
[1750118767985,0.81763603,106660.0,106650.0,0.001]
[1750118768225,0.60465606,106660.0,106650.0,0.001]
[1750118768444,0.60365606,106660.0,106650.0,0.001]
[1750118768690,0.58390012,106660.0,106650.0,0.001]
[1750118768908,0.92390012,106660.0,106650.0,0.001]
[1750118769170,0.75320584,106660.0,106650.0,0.001]
[1750118769420,0.94580584,106660.0,106650.0,0.001]
[1750118769664,6.07524669,106660.0,106650.0,0.001]
[1750118769903,6.12324669,106660.0,106650.0,0.001]
[1750118770140,6.15044382,106660.0,106650.0,0.001]
[1750118770593,6.15444382,106660.0,106650.0,0.001]
[1750118770906,6.19070666,106660.0,106650.0,0.001]
[1750118771609,6.16350953,106660.0,106650.0,0.001]
[1750118771877,5.9981643,106660.0,106650.0,0.001]
[1750118772182,6.33186379,106660.0,106650.0,0.001]
[1750118772384,6.29560095,106660.0,106650.0,0.001]
[1750118772602,0.54633964,106620.0,106610.0,0.0008566]
[1750118772827,0.90845326,106620.0,106610.0,0.0008566]
[1750118773054,0.93024651,106620.0,106610.0,0.0008566]
[1750118773739,0.93224651,106620.0,106610.0,0.0008566]
[1750118773972,0.93238846,106620.0,106610.0,0.0008566]
[1750118774235,0.65398756,106620.0,106610.0,0.0008566]
[1750118774494,0.84650756,106620.0,106610.0,0.0008566]
[1750118774732,0.65398756,106620.0,106610.0,0.0008566]
[1750118774944,0.84750756,106620.0,106610.0,0.0008566]
[1750118775204,0.72302101,106620.0,106610.0,0.0008566]
[1750118775423,0.91538101,106620.0,106610.0,0.0008566]
[1750118777287,0.72302101,106620.0,106610.0,0.0008566]
[1750118777520,0.65498756,106620.0,106610.0,0.0008566]
[1750118777783,0.84702756,106620.0,106610.0,0.0337566]
[1750118778049,0.84702756,106620.0,106610.0,0.0008566]
[1750118779194,0.65498756,106620.0,106610.0,0.0008566]
[1750118779445,0.84706756,106620.0,106610.0,0.0008566]
[1750118779646,0.94321678,106620.0,106610.0,0.0008566]
[1750118781028,1.00581678,106620.0,106610.0,0.0008566]
[1750118781932,0.94273678,106620.0,106610.0,0.0008566]
[1750118782445,0.97091978,106620.0,106610.0,0.0008566]
[1750118782675,1.03381978,106620.0,106610.0,0.0008566]
[1750118783182,1.05555253,106620.0,106610.0,0.0008566]
[1750118783426,1.03133978,106620.0,106610.0,0.0008566]
[1750118784160,5.65077946,106610.0,106600.0,0.00786279]
[1750118784411,0.54639772,106590.0,106580.0,0.1592625]
[1750118784666,0.83411948,106590.0,106580.0,0.1592625]
[1750118784902,0.54645582,106560.0,106550.0,0.05000069]
[1750118785122,0.87550989,106560.0,106550.0,0.05000069]
[1750118785409,0.89724392,106560.0,106550.0,0.01039704]
[1750118785626,0.89724392,106560.0,106550.0,0.00511571]
[1750118785627,6.11468466,106560.0,106550.0,0.00511571]
[1750118785876,5.66035274,106510.0,106500.0,2.00807]
[1750118786118,6.04506372,106510.0,106500.0,2.00807]
[1750118786353,6.09515169,106510.0,106500.0,2.00807]
[1750118786619,5.92998143,106510.0,106500.0,2.00807]
[1750118786859,5.94452228,106510.0,106500.0,2.00807]
[1750118787076,5.90483169,106510.0,106500.0,1.99643518]
[1750118787298,6.14931169,106510.0,106500.0,1.59653518]
[1750118787520,5.91937254,106510.0,106500.0,1.59653518]
[1750118787747,6.13417425,106510.0,106500.0,1.59653518]
[1750118788003,5.93861425,106510.0,106500.0,1.59653518]
[1750118788249,6.13465425,106510.0,106500.0,1.59653518]
[1750118788468,5.88861425,106510.0,106500.0,1.59653518]
[1750118788713,0.9676192,106510.0,106500.0,1.59653518]
[1750118788928,0.87146998,106510.0,106500.0,1.59653518]
[1750118789158,0.88084673,106510.0,106500.0,1.59653518]
[1750118789604,0.95888758,106510.0,106500.0,1.59653518]
[1750118789826,6.00888758,106510.0,106500.0,1.58734079]
[1750118790056,6.1053968,106510.0,106500.0,1.58734079]
[1750118790281,6.0729968,106510.0,106500.0,1.58734079]
[1750118790507,6.1047168,106510.0,106500.0,1.5764921]
[1750118790754,6.1047168,106510.0,106500.0,1.5726621]
[1750118790995,6.1547168,106510.0,106500.0,1.5726621]
[1750118791206,6.1229168,106510.0,106500.0,1.5726621]
[1750118792648,6.1229168,106510.0,106500.0,1.56776656]
[1750118793125,6.1511328,106510.0,106500.0,1.56776656]
[1750118793583,6.1841328,106510.0,106500.0,1.56776656]
[1750118793793,0.35878771,106450.0,106440.0,0.22829397]
[1750118794014,0.35878771,106450.0,106440.0,0.031]
[1750118794015,0.84854483,106450.0,106440.0,0.031]
[1750118794267,0.66169811,106450.0,106440.0,0.21889928]
[1750118794490,0.67017648,106450.0,106440.0,0.22829424]
[1750118794735,0.43624176,106450.0,106440.0,0.23768893]
[1750118794955,0.6702163,106450.0,106440.0,0.21889928]
[1750118795214,0.85928187,106450.0,106440.0,0.031]
[1750118795454,0.85928187,106450.0,106440.0,0.21889928]
[1750118795671,0.85828187,106450.0,106440.0,0.21889928]
[1750118795903,0.35878947,106440.0,106430.0,0.22823445]
[1750118796132,0.46442566,106440.0,106430.0,0.26581711]
[1750118796346,0.45503035,106440.0,106430.0,0.27521233]
[1750118796541,0.46442487,106440.0,106430.0,0.27521233]
[1750118796806,0.83537035,106440.0,106430.0,0.00936293]
[1750118797036,1.00117035,106440.0,106430.0,0.00936293]
[1750118797284,0.92694163,106440.0,106430.0,0.00936293]
[1750118797516,0.83913052,106440.0,106430.0,0.00936293]
[1750118797786,0.84153052,106440.0,106430.0,0.00936293]
[1750118798020,0.64293052,106440.0,106430.0,0.00936293]
[1750118798265,0.83317591,106440.0,106430.0,0.00936293]
[1750118798497,0.92732513,106440.0,106430.0,0.00936293]
[1750118798737,0.92632513,106440.0,106430.0,0.00936293]
[1750118799192,0.92732513,106440.0,106430.0,0.00936293]
[1750118799996,0.97732513,106440.0,106430.0,0.00936293]
[1750118800225,1.00922513,106440.0,106430.0,0.00936293]
[1750118800436,0.53731261,106430.0,106420.0,0.00121822]
[1750118800662,0.72970359,106430.0,106420.0,0.00121822]
[1750118800887,0.72970359,106430.0,106410.0,0.00094]
[1750118800888,0.53733114,106420.0,106410.0,0.00094]
[1750118801114,0.8300529,106420.0,106410.0,0.00094]
[1750118801343,0.19734969,106410.0,106400.0,0.0005]
[1750118801616,0.29359145,106410.0,106400.0,0.0005]
[1750118801871,0.49023145,106410.0,106400.0,0.0005]
[1750118802533,0.10563875,106410.0,106400.0,0.0321]
[1750118802741,0.31626797,106410.0,106400.0,0.0321]
[1750118802961,0.51148761,106410.0,106400.0,0.23886655]
[1750118803187,0.00214147,106410.0,106400.0,0.24826433]
[1750118803408,0.50217009,106410.0,106400.0,0.0005]
[1750118803631,0.59831931,106410.0,106400.0,0.0005]
[1750118803856,0.39927931,106410.0,106400.0,0.0005]
[1750118804108,0.59835931,106410.0,106400.0,0.0005]
[1750118804333,0.626014,106410.0,106400.0,0.0005]
[1750118804553,0.626054,106410.0,106400.0,0.0005]
[1750118804792,0.628054,106410.0,106400.0,0.0005]
[1750118805231,0.430934,106410.0,106400.0,0.0005]
[1750118805454,0.627854,106410.0,106400.0,0.0005]
[1750118805952,0.12803792,106410.0,106400.0,0.18846992]
[1750118806207,0.00314147,106410.0,106400.0,0.28076433]
[1750118806440,0.2098885,106410.0,106400.0,0.0321]
[1750118806669,0.67409672,106410.0,106400.0,0.0005]
[1750118806898,0.67409672,106410.0,106380.0,0.26853347]
[1750118806899,0.01879813,106390.0,106380.0,0.0936296]
[1750118807179,0.74428664,106400.0,106380.0,0.1268296]
[1750118807470,0.02819689,106390.0,106380.0,0.1268296]
[1750118807685,0.01879778,106390.0,106380.0,0.1268296]
[1750118807927,0.21618509,106390.0,106380.0,0.1268296]
[1750118808622,0.20678607,106390.0,106380.0,0.0936296]
[1750118808834,0.20878607,106390.0,106380.0,0.0936296]
[1750118809553,0.20878607,106390.0,106380.0,0.1258296]
[1750118810225,0.30502783,106390.0,106380.0,0.0936296]
[1750118810500,0.47540577,106390.0,106380.0,0.05232668]
[1750118810728,0.81540577,106390.0,106380.0,0.05232668]
[1750118810965,0.81640577,106390.0,106380.0,0.04292376]
[1750118811213,0.64602783,106390.0,106380.0,0.04292376]
[1750118811428,0.84346775,106390.0,106380.0,0.10572376]
[1750118811904,0.84346775,106390.0,106380.0,0.04292376]
[1750118811905,0.84246775,106390.0,106380.0,0.04292376]
[1750118812134,0.64302775,106390.0,106380.0,0.03352084]
[1750118812363,0.93781697,106390.0,106380.0,0.02411792]
[1750118812598,0.74017697,106390.0,106380.0,0.02411792]
[1750118812831,0.64402775,106390.0,106380.0,0.02411792]
[1750118813018,0.84170775,106390.0,106380.0,0.02411792]
[1750118813288,0.84370775,106390.0,106380.0,0.02411792]
[1750118813754,0.84070775,106390.0,106380.0,0.02411792]
[1750118814001,0.93785697,106390.0,106380.0,0.02411792]
[1750118814250,0.93885697,106390.0,106380.0,0.02411792]
[1750118814487,0.84270775,106390.0,106380.0,0.02411792]
[1750118815646,0.8644363,106390.0,106380.0,0.02411792]
[1750118816137,0.6667563,106390.0,106380.0,0.02411792]
[1750118816363,0.8645563,106390.0,106380.0,0.02411792]
[1750118817757,0.8644763,106390.0,106380.0,0.02411792]
[1750118817981,0.96062552,106390.0,106380.0,0.02411792]
[1750118818937,0.96058552,106390.0,106380.0,0.02411792]
[1750118819373,0.76290552,106390.0,106380.0,0.02411792]
[1750118819589,0.8642363,106390.0,106380.0,0.02411792]
[1750118820763,0.6667563,106390.0,106380.0,0.02411792]
[1750118820995,0.8952963,106390.0,106380.0,0.02411792]
[1750118821216,0.92248604,106390.0,106380.0,0.02411792]
[1750118821439,1.01863526,106390.0,106380.0,0.02411792]
[1750118821915,0.98753526,106390.0,106380.0,0.02411792]
[1750118822161,0.79005526,106390.0,106380.0,0.02411792]
[1750118822379,0.8640763,106390.0,106380.0,0.02411792]
[1750118822618,0.89122604,106390.0,106380.0,0.02411792]
[1750118823617,5.98140134,106390.0,106380.0,0.02411792]
[1750118824059,0.70308134,106390.0,106380.0,0.02411792]
[1750118824301,0.79936943,106390.0,106380.0,0.02411792]
[1750118824749,0.67596941,106390.0,106380.0,0.24382318]
[1750118824992,0.8638503,106390.0,106380.0,0.08811792]
[1750118825186,0.6665703,106390.0,106380.0,0.05581792]
[1750118825447,0.8639703,106390.0,106380.0,0.05581792]
[1750118825679,0.96011952,106390.0,106380.0,0.05581792]
[1750118826123,0.76271952,106390.0,106380.0,0.05581792]
[1750118826382,0.98733032,106390.0,106380.0,0.05581792]
[1750118827059,0.98733032,106390.0,106380.0,0.02411792]
[1750118827279,0.78997032,106390.0,106380.0,0.02411792]
[1750118827503,0.98709032,106390.0,106380.0,0.02411792]
[1750118827727,1.02337536,106390.0,106380.0,0.02411792]
[1750118827959,0.82629536,106390.0,106380.0,0.02411792]
[1750118828202,1.02333536,106390.0,106380.0,0.02411792]
[1750118828421,0.8907011,106390.0,106380.0,0.02411792]
[1750118828646,0.8907011,106390.0,106380.0,0.05671792]
[1750118829127,0.6938211,106390.0,106380.0,0.05671792]
[1750118829579,0.59757934,106390.0,106380.0,0.27552318]
[1750118829800,0.61637773,106390.0,106380.0,0.08751792]
[1750118830024,0.80389871,106390.0,106380.0,0.08751792]
[1750118830250,0.60697871,106390.0,106380.0,0.08751792]
[1750118830488,0.60697871,106390.0,106380.0,0.27552318]
[1750118830714,0.8225764,106390.0,106380.0,0.29432325]
[1750118830950,0.87276958,106390.0,106380.0,0.08751792]
[1750118831418,0.90002038,106390.0,106380.0,0.05671792]
[1750118831654,0.90028709,106390.0,106380.0,0.08951792]
[1750118833758,0.80384533,106390.0,106380.0,0.28692335]
[1750118834262,0.79444613,106390.0,106380.0,0.08951792]
[1750118834715,0.59784613,106390.0,106380.0,0.08951792]
[1750118834940,0.79428613,106390.0,106380.0,0.08951792]
[1750118835171,0.06045917,106390.0,106380.0,0.28692344]
[1750118835392,0.23988615,106390.0,106380.0,0.08951792]
[1750118835614,0.57048704,106390.0,106380.0,0.08951792]
[1750118836566,0.59784596,106390.0,106380.0,0.09891818]
[1750118836779,0.59784596,106390.0,106380.0,0.30572369]
[1750118836994,0.79416596,106390.0,106380.0,0.30572369]
[1750118837215,0.59784596,106390.0,106380.0,0.30572369]
[1750118837454,0.79400596,106390.0,106380.0,0.30572369]
[1750118837669,0.88084852,106390.0,106380.0,0.02411792]
[1750118837925,0.88969464,106390.0,106380.0,0.02411792]
[1750118838139,0.69365464,106390.0,106380.0,0.02411792]
[1750118838354,0.88973464,106390.0,106380.0,0.02411792]
[1750118841616,0.71181717,106390.0,106380.0,0.02411792]
[1750118841844,0.99727635,106390.0,106380.0,0.02411792]
[1750118842059,0.99719635,106390.0,106380.0,0.02411792]
[1750118843685,1.04235131,106390.0,106380.0,0.02411792]
[1750118843935,0.87230876,106390.0,106380.0,0.02411792]
[1750118844179,0.87625067,106390.0,106380.0,0.02411792]
[1750118844430,0.87230876,106390.0,106380.0,0.02411792]
[1750118844652,1.0968324,106390.0,106380.0,0.02411792]
[1750118844881,1.06672014,106390.0,106380.0,0.02411792]
[1750118845364,0.2068246,106370.0,106360.0,6e-05]
[1750118845602,0.38697336,106370.0,106360.0,6e-05]
[1750118846315,0.2190104,106370.0,106360.0,6e-05]
[1750118846539,0.94267333,106370.0,106360.0,6e-05]
[1750118846785,0.97431473,106370.0,106360.0,6e-05]
[1750118847265,6.05951473,106370.0,106360.0,6e-05]
[1750118847554,0.54688295,106340.0,106330.0,0.02898]
[1750118847800,0.74272295,106340.0,106330.0,0.02898]
[1750118848010,0.76461392,106340.0,106330.0,0.02898]
[1750118848234,0.86085568,106340.0,106330.0,0.02898]
[1750118848687,0.86084318,106340.0,106330.0,0.02898]
[1750118848913,0.53749817,106330.0,106320.0,0.03135101]
[1750118849608,0.82965993,106330.0,106320.0,0.03135101]
[1750118850297,0.84830166,106330.0,106320.0,0.04075657]
[1750118850539,0.44547908,106330.0,106320.0,0.2694734]
[1750118850754,0.3586412,106330.0,106320.0,0.28828355]
[1750118850976,0.34923732,106330.0,106320.0,0.28828355]
[1750118851214,0.35864129,106330.0,106320.0,0.28828355]
[1750118851427,0.54483732,106330.0,106320.0,0.28828355]
[1750118851654,0.00014132,106330.0,106320.0,0.28828355]
[1750118851884,0.00014132,106330.0,106320.0,0.46566616]
[1750118852578,0.00014132,106330.0,106320.0,0.39906616]
[1750118852800,0.00014132,106330.0,106320.0,0.46566616]
[1750118853253,0.00014132,106330.0,106320.0,0.15266616]
[1750118853500,0.00014132,106330.0,106320.0,0.35958767]
[1750118853717,0.00014132,106330.0,106320.0,0.3783987]
[1750118853944,0.00014132,106330.0,106320.0,0.22573254]
[1750118854426,0.11519155,106330.0,106320.0,0.0188105]
[1750118854653,0.11519111,106330.0,106320.0,0.21632734]
[1750118854866,0.16399712,106330.0,106320.0,0.21632734]
[1750118855160,0.17340162,106330.0,106320.0,0.22573228]
[1750118855393,0.13574074,106330.0,106320.0,0.21632734]
[1750118855609,0.11519147,106330.0,106320.0,0.22573237]
[1750118855824,0.13574101,106330.0,106320.0,0.21632734]
[1750118856047,0.13574101,106330.0,106310.0,0.19752803]
[1750118856048,0.00940547,106320.0,106310.0,0.19752803]
[1750118856274,0.82912134,106330.0,106310.0,0.20693315]
[1750118856464,0.02821483,106320.0,106310.0,0.21633951]
[1750118857154,0.01880971,106320.0,106310.0,0.21633951]
[1750118857396,0.65043199,106330.0,106320.0,0.21632725]
[1750118857605,0.00940583,106310.0,106300.0,0.37850884]
[1750118857825,0.11505333,106310.0,106300.0,0.41613684]
[1750118858044,0.01881157,106310.0,106300.0,0.44853684]
[1750118858279,0.01881157,106310.0,106300.0,0.39735594]
[1750118858280,0.32199519,106310.0,106300.0,0.39735594]
[1750118858509,0.13386596,106310.0,106300.0,0.41616963]
[1750118858735,0.13386596,106310.0,106300.0,0.4067623]
[1750118858736,0.00940574,106310.0,106300.0,0.4067623]
[1750118858971,0.22575298,106310.0,106300.0,0.37854154]
[1750118859200,0.22575369,106310.0,106300.0,0.3879487]
[1750118859414,0.30318353,106310.0,106300.0,0.19039479]
[1750118859891,0.30318353,106310.0,106300.0,0.19980212]
[1750118860150,0.30318353,106310.0,106300.0,0.19039479]
[1750118860398,0.76393589,106310.0,106300.0,0.19039479]
[1750118860644,0.86978353,106310.0,106300.0,0.19039479]
[1750118860876,0.83758353,106310.0,106300.0,0.19039479]
[1750118861095,0.86778353,106310.0,106300.0,0.19039479]
[1750118861329,0.67338353,106310.0,106300.0,0.19039479]
[1750118861861,0.92125449,106310.0,106300.0,0.19039479]
[1750118862858,0.88955449,106310.0,106300.0,0.19039479]
[1750118863078,0.88927449,106310.0,106300.0,0.19039479]
[1750118863746,0.69531449,106310.0,106300.0,0.19039479]
[1750118863968,0.91915449,106310.0,106300.0,0.19039479]
[1750118864190,0.88915449,106310.0,106300.0,0.19039479]
[1750118864448,0.69531449,106310.0,106300.0,0.19039479]
[1750118864672,0.67318353,106310.0,106300.0,0.19039479]
[1750118864906,0.83706353,106310.0,106300.0,0.19039479]
[1750118865135,0.895945,106310.0,106300.0,0.19039479]
[1750118865394,0.83706353,106310.0,106300.0,0.19039479]
[1750118865610,0.93321275,106310.0,106300.0,0.19039479]
[1750118866292,0.96421286,106310.0,106300.0,0.19039479]
[1750118866515,0.99209422,106310.0,106300.0,0.19039479]
[1750118866738,0.93321275,106310.0,106300.0,0.19039479]
[1750118867864,0.7681184,106310.0,106300.0,0.19039479]
[1750118868090,0.10564821,106310.0,106300.0,0.19039479]
[1750118868326,0.3049238,106310.0,106300.0,0.19039479]
[1750118868552,1.05626792,106310.0,106300.0,0.0678734]
[1750118868781,0.80680577,106310.0,106300.0,0.04890109]
[1750118869012,1.16315499,106310.0,106300.0,0.04273109]
[1750118869249,6.21315499,106310.0,106300.0,0.01161453]
[1750118869476,6.21315499,106310.0,106300.0,0.00617]
[1750118869710,0.57978027,106290.0,106280.0,0.01]
[1750118869935,0.86942203,106290.0,106280.0,0.01]
[1750118870161,0.93277125,106290.0,106280.0,0.01]
[1750118870450,0.73937125,106290.0,106280.0,0.01]
[1750118870674,0.09624176,106290.0,106280.0,0.2902084]
[1750118870908,0.20696461,106300.0,106290.0,0.00940813]
[1750118871140,0.01881555,106290.0,106280.0,0.22640832]
[1750118871365,0.01881511,106290.0,106280.0,0.22640823]
[1750118871596,0.00940698,106300.0,106290.0,0.20698044]
[1750118871839,0.01881502,106290.0,106280.0,0.19818216]
[1750118872070,0.01114787,106290.0,106280.0,0.21699939]
[1750118872309,0.02055547,106290.0,106280.0,0.21699939]
[1750118872541,0.01114787,106290.0,106280.0,0.21699992]
[1750118872775,0.12620518,106290.0,106280.0,0.20759117]
[1750118873041,0.11679732,106290.0,106280.0,0.23581733]
[1750118873259,0.49764029,106290.0,106280.0,0.19818216]
[1750118873480,0.44564918,106290.0,106280.0,0.2170001]
[1750118873702,0.47387277,106290.0,106280.0,0.2170001]
[1750118873931,0.47387277,106290.0,106280.0,0.22640894]
[1750118874152,0.6526298,106290.0,106280.0,0.01]
[1750118874382,0.73937142,106290.0,106280.0,0.01]
[1750118874610,0.76026356,106290.0,106280.0,0.01]
[1750118875534,0.78205911,106290.0,106280.0,0.01940901]
[1750118875763,0.34,106300.0,106290.0,0.21637973]
[1750118876027,0.00014127,106310.0,106300.0,0.21636768]
[1750118876257,0.00014127,106310.0,106300.0,0.30186768]
[1750118876493,0.00014127,106310.0,106300.0,0.41265029]
[1750118876723,0.00014127,106310.0,106300.0,0.44056226]
[1750118876964,0.00014127,106310.0,106300.0,0.41265029]
[1750118877194,0.00014127,106310.0,106300.0,0.60189029]
[1750118877427,0.00014127,106310.0,106300.0,0.58734944]
[1750118877650,0.00014127,106310.0,106300.0,0.24936768]
[1750118877842,0.01895284,106310.0,106300.0,0.20696097]
[1750118878159,0.0300992,106310.0,106300.0,0.21636768]
[1750118878390,0.01895275,106310.0,106300.0,0.21636768]
[1750118878613,0.00014127,106310.0,106300.0,0.21636768]
[1750118878836,0.00954701,106310.0,106300.0,0.21636768]
[1750118879074,0.0095471,106310.0,106300.0,0.18814675]
[1750118879302,0.3792937,106310.0,106290.0,0.21637884]
[1750118879529,0.18001758,106310.0,106300.0,0.20696115]
[1750118879755,0.30468192,106310.0,106300.0,0.22577484]
[1750118879998,0.33116055,106310.0,106300.0,0.22577502]
[1750118880225,0.39918456,106310.0,106300.0,0.01881413]
[1750118880464,0.39918456,106310.0,106300.0,0.20696115]
[1750118880757,0.00940707,106300.0,106290.0,0.18815596]
[1750118880992,0.00940689,106300.0,106290.0,0.20697178]
[1750118881228,0.01881511,106290.0,106280.0,0.19818216]
[1750118881471,0.25795497,106290.0,106280.0,0.01]
[1750118881697,0.77240256,106290.0,106280.0,0.01]
[1750118882159,0.71745092,106290.0,106280.0,0.2170001]
[1750118882401,0.45505722,106290.0,106280.0,0.22640894]
[1750118882621,0.32689904,106310.0,106280.0,0.20759055]
[1750118882862,0.18001802,106310.0,106300.0,0.01881422]
[1750118883087,0.92981388,106310.0,106300.0,0.19755399]
[1750118883324,0.02822315,106290.0,106280.0,0.2169993]
[1750118883564,0.50433425,106290.0,106280.0,0.01]
[1750118883796,0.30676176,106290.0,106280.0,0.20759117]
[1750118884032,0.0094076,106290.0,106280.0,0.01]
[1750118884264,0.30496274,106290.0,106280.0,0.01]
[1750118884497,0.30322238,106290.0,106280.0,0.01]
[1750118885209,0.65812003,106290.0,106280.0,0.01]
[1750118885448,0.68972003,106290.0,106280.0,0.01]
[1750118885675,0.51370238,106290.0,106280.0,0.01]
[1750118885878,0.85370238,106290.0,106280.0,0.01]
[1750118887069,0.85306238,106290.0,106280.0,0.01]
[1750118887554,0.88306238,106290.0,106280.0,0.01]
[1750118887782,0.92907432,106290.0,106280.0,0.01]
[1750118888029,0.85306238,106290.0,106280.0,0.01]
[1750118888491,0.85298238,106290.0,106280.0,0.01]
[1750118889409,0.88298238,106290.0,106280.0,0.01]
[1750118889879,0.67322238,106290.0,106280.0,0.01]
[1750118890117,0.96863931,106290.0,106280.0,0.01]
[1750118890574,1.00163931,106290.0,106280.0,0.01]
[1750118890807,0.97163931,106290.0,106280.0,0.01]
[1750118891031,6.02861942,106290.0,106280.0,0.01]
[1750118891471,0.97861942,106290.0,106280.0,0.01]
[1750118892394,0.89228249,106290.0,106280.0,0.01]
[1750118893073,0.92248249,106290.0,106280.0,0.01]
[1750118893816,0.89228249,106290.0,106280.0,0.01]
[1750118894749,0.68260249,106290.0,106280.0,0.01]
[1750118894980,0.92644249,106290.0,106280.0,0.01]
[1750118895259,0.96179171,106290.0,106280.0,0.01]
[1750118895940,6.0336655,106290.0,106280.0,0.01]
[1750118896183,6.5269655,106290.0,106280.0,0.01]
[1750118896630,6.0336655,106290.0,106280.0,0.01]
[1750118898451,5.8836255,106290.0,106280.0,0.01]
[1750118898713,6.04299171,106290.0,106280.0,0.01]
[1750118899160,0.81175171,106290.0,106280.0,0.01]
[1750118899393,0.78015171,106290.0,106280.0,0.01]
[1750118899629,0.99275171,106290.0,106280.0,0.01]
[1750118899897,1.02365171,106290.0,106280.0,0.01]
[1750118900357,0.99205171,106290.0,106280.0,0.01]
[1750118900588,0.96115171,106290.0,106280.0,0.01]
[1750118900811,0.99425171,106290.0,106280.0,0.01]
[1750118901556,0.99295171,106290.0,106280.0,0.01]
[1750118901788,0.96115171,106290.0,106280.0,0.01]
[1750118902267,0.74855171,106290.0,106280.0,0.01]
[1750118902497,0.99255171,106290.0,106280.0,0.01]
[1750118902742,0.96075171,106290.0,106280.0,0.01]
[1750118904145,0.99395171,106290.0,106280.0,0.01]
[1750118904362,0.96075171,106290.0,106280.0,0.01]
[1750118904816,0.74855171,106290.0,106280.0,0.01]
[1750118905049,0.65240249,106290.0,106280.0,0.01]
[1750118905297,0.31240249,106290.0,106280.0,0.01]
[1750118905736,0.52332249,106290.0,106280.0,0.01]
[1750118905965,0.65240249,106290.0,106280.0,0.01]
[1750118906230,0.88877686,106290.0,106280.0,0.01]
[1750118906447,0.88845686,106290.0,106280.0,0.01]
[1750118906690,0.94995686,106290.0,106280.0,0.01]
[1750118906916,0.91995686,106290.0,106280.0,0.01]
[1750118907368,0.74185686,106290.0,106280.0,0.01]
[1750118907584,0.91971686,106290.0,106280.0,0.01]
[1750118908015,0.95221686,106290.0,106280.0,0.01]
[1750118908235,0.95209686,106290.0,106280.0,0.01]
[1750118908892,0.91959686,106290.0,106280.0,0.01]
[1750118909559,0.95269686,106290.0,106280.0,0.01]
[1750118910038,0.67785686,106290.0,106280.0,0.01]
[1750118910509,0.64322238,106290.0,106280.0,0.01]
[1750118910775,0.36822289,106290.0,106280.0,0.27949975]
[1750118911009,0.85262238,106290.0,106280.0,0.0416]
[1750118911242,0.85262238,106290.0,106280.0,0.01]
[1750118911459,0.84994238,106290.0,106280.0,0.01]
[1750118911688,0.91960089,106290.0,106280.0,0.01]
[1750118912180,0.64074238,106290.0,106280.0,0.19818216]
[1750118912413,0.18827032,106310.0,106300.0,0.00940733]
[1750118912690,0.00014127,106310.0,106300.0,0.27936768]
[1750118912919,0.00954701,106310.0,106300.0,0.29818191]
[1750118913150,0.00014127,106310.0,106300.0,0.42896452]
[1750118914357,0.00014127,106310.0,106300.0,0.29818191]
[1750118914599,0.00954701,106310.0,106300.0,0.29818191]
[1750118914815,0.01895293,106310.0,106300.0,0.29818191]
[1750118915008,0.00014127,106310.0,106300.0,0.29818191]
[1750118915287,0.00954692,106310.0,106300.0,0.29818191]
[1750118915742,0.00014127,106310.0,106300.0,0.29818191]
[1750118918915,0.03776547,106310.0,106300.0,0.26055364]
[1750118919136,0.03776547,106310.0,106300.0,0.27916751]
[1750118919137,0.00954692,106310.0,106300.0,0.27916751]
[1750118919387,0.00014127,106310.0,106300.0,0.27916751]
[1750118919607,0.00014127,106310.0,106300.0,0.59671012]
[1750118919831,0.00014127,106310.0,106300.0,0.58995012]
[1750118920051,0.00014127,106310.0,106300.0,0.67123012]
[1750118921381,0.00014127,106310.0,106300.0,0.87123012]
[1750118922721,0.73426163,106350.0,106340.0,0.26096441]
[1750118922722,0.0094022,106350.0,106340.0,0.26096441]
[1750118922943,0.18827365,106360.0,106350.0,0.21626596]
[1750118923156,0.03986029,106360.0,106350.0,0.27976596]
[1750118923373,0.03986029,106360.0,106350.0,0.41054857]
[1750118923596,0.03986029,106360.0,106350.0,0.61054857]
[1750118923818,0.03986029,106360.0,106350.0,0.81054857]
[1750118924097,0.0400026,106360.0,106350.0,0.86054857]
[1750118924314,0.02993442,106400.0,106390.0,0.21618491]
[1750118924541,0.00014226,106400.0,106390.0,0.22558367]
[1750118924991,0.00014226,106400.0,106390.0,0.25848367]
[1750118925216,0.00014226,106400.0,106390.0,0.62562628]
[1750118925760,0.00014226,106400.0,106390.0,0.65336766]
[1750118926008,0.01893774,106400.0,106390.0,0.33622505]
[1750118926224,0.00953996,106400.0,106390.0,0.25332505]
[1750118926445,0.10430505,106400.0,106390.0,0.21618527]
[1750118926674,0.111963,106400.0,106390.0,0.2255842]
[1750118926894,0.10256451,106400.0,106390.0,0.22558403]
[1750118927113,0.01893792,106400.0,106390.0,0.22558403]
[1750118927334,0.0377341,106400.0,106390.0,0.22558403]
[1750118927769,0.22570543,106400.0,106390.0,0.22558447]
[1750118927983,0.0283364,106400.0,106390.0,0.23498323]